Cogmind - Beta 14 @@@ ROGUE MODE // 2024.10.01 @ 21:40:32 Player: Mein Result: Destroyed by as-77678 with Assembled Blade Performance ------------- Evolutions (1) 500 Regions Visited (4) 800 Robots Destroyed (19) 95 Value Destroyed (342) 342 Prototype IDs (0) 0 Alien Tech Used (0) 0 Bonus (0) 0 TOTAL SCORE: 1737 Bonus ------- None Cogmind --------- Core Integrity 0/400 Matter 299/300 Energy 100/100 System Corruption 9% Temperature Cool (20) Movement Core (1350) Ox26 Location -9/Mines Parts ------- > --- POWER (2) -------- (None) > --- PROPULSION (3) --- (None) > --- UTILITY (2) ------ Huge Storage Unit > --- WEAPON (2) ------- (None) > --- INVENTORY (25) --- Flight Unit Flight Unit Large Storage Unit Reaction Control System Medium Armor Plating Light Assault Rifle Datajack Heavy Flail Heavy Flail Peak State ------------ > --- POWER ------------ Ion Engine Ion Engine > --- PROPULSION ------- Airjet Airjet Airjet > --- UTILITY ---------- Huge Storage Unit High-capacity Matter Pod > --- WEAPON ----------- Heavy Flail Heavy Flail > --- INVENTORY -------- Light Treads Improved Treads Large Storage Unit Reaction Control System Medium Armor Plating Particle Cannon Datajack [Rating: 20] Favorites ----------- Power Ion Engine Engine Ion Engine Propulsion Flight Unit Treads Light Treads Hover Unit Airjet Flight Unit Flight Unit Utility Huge Storage Unit Storage Huge Storage Unit Protection Backup Plating I Weapon Assault Rifle Energy Cannon Particle Cannon Ballistic Gun Assault Rifle Special Weapon Mining Laser Impact Weapon Heavy Flail Build | -11 -10 -10 -9 -9 ------- Run | Yrd Mat Min Mat Min Slots Evolved 2 | . . . 2 . Power 1 | . . . 1 . Propulsion 1 | . . . 1 . Utility . | . . . . . Weapon . | . . . . . Parts Attached 36 | 5 1 6 14 10 Power 5 | 1 . . 3 1 Engine 5 | 1 . . 3 1 Core . | . . . . . Reactor . | . . . . . Propulsion 16 | 2 . 2 7 5 Treads 7 | 2 . . 3 2 Leg . | . . . . . Wheel . | . . . . . Hover 3 | . . . 3 . Flight 6 | . . 2 1 3 Utility 3 | . 1 2 . . Device . | . . . . . Storage 3 | . 1 2 . . Processor . | . . . . . Hackware . | . . . . . Protection . | . . . . . Artifact . | . . . . . Weapon 12 | 2 . 2 4 4 Energy Gun . | . . . . . Energy Cannon 2 | . . . 1 1 Ballistic Gun 5 | 2 . 1 1 1 Ballistic Cannon . | . . . . . Launcher . | . . . . . Special Weapon 3 | . . 1 2 . Impact Weapon 2 | . . . . 2 Slashing Weapon . | . . . . . Piercing Weapon . | . . . . . Special Melee Weapon . | . . . . . Unidentified Prototypes . | . . . . . Parts Lost 21 | . . 5 5 11 Power 4 | . . 1 . 3 Propulsion 8 | . . 1 2 5 Utility 1 | . . . . 1 Weapon 8 | . . 3 3 2 Highest Loss Streak 7 | . . 3 4 7 To Critical Strikes . | . . . . . Average Slot Usage (%) 91 | . 90 99 66 81 Engine 15 | . 14 13 9 21 Treads 6 | . 28 . 16 14 Flight 19 | . . 27 2 9 Storage 19 | . 11 22 22 12 Protection 4 | . 8 5 . . Energy Cannon 2 | . . . 2 10 Ballistic Gun 15 | . 28 18 7 8 Special Weapon 6 | . . 9 4 . Peak Build Rating 20 | 5 7 7 16 20 Average Rating 7 | 4 6 6 7 10 On Entrance 6 | . 5 7 4 16 Naked Turns . | . . . . . Heaviest Build 101 | 9 30 92 100 101 Greatest Support 66 | 40 40 40 66 43 Greatest Overweight (x) 30 | . . 21 28 30 Average Overweight (x) 3 | . . 5 3 3 Largest Inventory Capacity 25 | 5 15 25 25 25 Average Capacity 21 | 5 12 20 25 25 Most Carried 10 | 5 5 8 9 10 Average Carried 7 | 2 3 7 5 8 Final Capacity 25 | 5 15 25 25 25 Final Carried 9 | 2 5 8 8 9 Class Distribution -------------------- 100% | Mutant Dominant Class ---------------- Mutant | -10/Materials Mutant | -10/Mines Mutant | -9/Materials Mutant | -9/Mines Resources | -11 -10 -10 -9 -9 ----------- Run | Yrd Mat Min Mat Min Matter Collected 811 | 247 . 286 174 104 Remotely . | . . . . . Salvage Created 468 | . . 135 174 159 Parts 29 | . . 6 10 13 Haulers Intercepted . | . . . . . Recyclers Shooed 1 | . . . 1 . Parts Field Recycled . | . . . . . Retrieved Matter . | . . . . . Parts Self-Destructed . | . . . . . Prevented . | . . . . . Kills | -11 -10 -10 -9 -9 ------- Run | Yrd Mat Min Mat Min Combat Hostiles Destroyed 17 | . . 5 4 8 Melee 1 | . . . . 1 Guns 7 | . . 5 2 . Cannons 7 | . . . 2 5 Classes Destroyed 7 | . . 3 1 3 Worker 1 | . . 1 . . Tunneler 1 | . . . . 1 Recycler 1 | . . . . 1 Swarmer 10 | . . 3 . 7 Grunt 5 | . . 2 3 . Sentry 1 | . . . 1 . Assembled 1 | . . . . 1 Best Kill Streak 3 | . . 3 2 3 Combat Bots Only 3 | . . 3 2 3 Max Kills in Single Turn 2 | . . 2 1 1 Gunslinging 1 | . . 1 . . Exploded . | . . . . . Melee 1 | . . . . 1 Uniques/NPCs Destroyed . | . . . . . Combat | -11 -10 -10 -9 -9 -------- Run | Yrd Mat Min Mat Min Hostile Shots Fired 247 | . . 80 39 128 Missed 58 | . . 27 11 20 Damage Taken 2176 | . . 526 330 1320 Core 477 | . . 52 102 323 Absorbed by Shields . | . . . . . Core Remaining (%) 89 | 100 . 79 . . Volleys Fired 55 | . 1 23 19 12 Largest 2 | . 2 2 2 2 Hottest 88 | . 40 40 88 88 Shots Fired 83 | . 2 40 25 16 Gun 63 | . 2 40 17 4 Cannon 20 | . . . 8 12 Launcher . | . . . . . Special . | . . . . . Kinetic 63 | . 2 40 17 4 Thermal 20 | . . . 8 12 Explosive . | . . . . . Electromagnetic . | . . . . . Robot Hit Streak 8 | . 2 7 8 4 Robot Miss Streak 11 | . . 11 3 6 Penetration Max . | . . . . . Secondary Targets 1 | . . 1 . . Max Gunslinging Chain 1 | . . 1 . . Shots Hit Robots 53 | . 2 23 18 10 Core Hits 24 | . . 8 7 9 Critical Kills . | . . . . . Critical Parts Destroyed . | . . . . . Critical Strikes . | . . . . . Melee Attacks 9 | . . . . 9 Impact 9 | . . . . 9 Slashing . | . . . . . Piercing . | . . . . . Sneak Attacks . | . . . . . Combat Hostiles . | . . . . . Follow-up Attacks 3 | . . . . 3 Damage Inflicted 1015 | . 26 336 260 393 Guns 543 | . 26 329 178 10 Cannons 207 | . . . 82 125 Explosions . | . . . . . Melee 228 | . . . . 228 Ramming 37 | . . 7 . 30 Kinetic 543 | . 26 329 178 10 Thermal 207 | . . . 82 125 Explosive . | . . . . . Electromagnetic . | . . . . . Impact 228 | . . . . 228 Slashing . | . . . . . Piercing . | . . . . . Highest Corruption 9 | . . . . 9 Average Corruption 9 | . . . . 9 Corruption Purged . | . . . . . Corruption Blocked . | . . . . . Effects 1 | . . . . 1 Matter Fused 1 | . . . . 1 Overload Shots . | . . . . . Overflow Damage 89 | . . . . 89 Projectiles 1 | . . . . 1 Explosions . | . . . . . Melee 88 | . . . . 88 Knockbacks 1 | . . . . 1 Impact 1 | . . . . 1 Kinetic . | . . . . . Secondary . | . . . . . Self-Inflicted Damage 3 | . . 3 . . Shots . | . . . . . Rammed 7 | . . 1 . 6 Targets Rammed 9 | . . 1 . 8 Kicked . | . . . . . Crushed 2 | . . . . 2 Highest Temperature 287 | . . 25 287 154 Average Temperature 82 | . . 7 149 57 Received Heat Transfer 422 | . . 144 198 80 Siege Activations . | . . . . . Robots Corrupted 2 | . . . . 2 Combat Hostiles 2 | . . . . 2 Parts Fried 1 | . . . . 1 Impact Corruptions 3 | . . . . 3 Robots Melted . | . . . . . Combat Hostiles . | . . . . . Parts Melted 1 | . . . . 1 Heat Transferred 370 | . . . 148 222 Parts Sabotaged . | . . . . . Parts Stolen . | . . . . . Parts Stripped . | . . . . . Power Chain Reactions . | . . . . . Alert | -11 -10 -10 -9 -9 ------- Run | Yrd Mat Min Mat Min Peak Influence 166 | . 6 71 95 166 Initial 36 | . . 1 . 36 Average 26 | . 3 13 39 67 Maximum Alert Level . | . . . . . Low Security (%) 100 | 100 100 100 100 100 Level 1 . | . . . . . Level 2 . | . . . . . Level 3 . | . . . . . Level 4 . | . . . . . Level 5 . | . . . . . High Security . | . . . . . Max Security . | . . . . . Squads Dispatched 1 | . 1 . . . Investigation . | . . . . . Extermination . | . . . . . Reinforcement 1 | . 1 . . . Assault . | . . . . . Garrison . | . . . . . Intercept . | . . . . . Searches Triggered . | . . . . . Construction Impeded . | . . . . . Haulers Reinforced . | . . . . . Active Scanning Responses . | . . . . . Cargo Convoy Interrupts . | . . . . . Stealth | -11 -10 -10 -9 -9 --------- Run | Yrd Mat Min Mat Min Distress Signals . | . . . . . Communications Jammed . | . . . . . Distress Signals . | . . . . . Times Spotted 38 | . 1 8 4 25 Peak Tracking Total 16 | . 1 3 2 16 Tactical Retreats . | . . . . . Traps | -11 -10 -10 -9 -9 ------- Run | Yrd Mat Min Mat Min Traps Triggered . | . . . . . Indirectly . | . . . . . Trap Hack Attempts . | . . . . . Triggered . | . . . . . Disarmed . | . . . . . Reprogrammed . | . . . . . Reused . | . . . . . Traps Extracted . | . . . . . Installed . | . . . . . Triggered . | . . . . . Machines | -11 -10 -10 -9 -9 ---------- Run | Yrd Mat Min Mat Min Machines Disabled . | . . . . . Max in Single Turn . | . . . . . Machines Repaired . | . . . . . Machines Dismantled . | . . . . . Machines Sabotaged . | . . . . . Overloaded Fab Kills . | . . . . . Hacking | -11 -10 -10 -9 -9 --------- Run | Yrd Mat Min Mat Min Machines Accessed 2 | . 1 . 1 . Terminals . | . . . . . Fabricators . | . . . . . Repair Stations 2 | . 1 . 1 . Recycling Units . | . . . . . Scanalyzers . | . . . . . Garrison Access . | . . . . . Total Hacks 2 | . 1 . 1 . Successful 1 | . 1 . . . Failed 1 | . . . 1 . Catastrophic . | . . . . . Database Lockouts . | . . . . . Manual . | . . . . . Terminals . | . . . . . Fabricators . | . . . . . Repair Stations 2 | . 1 . 1 . Recycling Units . | . . . . . Scanalyzers . | . . . . . Garrison Access . | . . . . . Terminal Hacks . | . . . . . Fabricator Hacks . | . . . . . Repair Station Hacks 1 | . 1 . . . Refit 1 | . 1 . . . Recycling Unit Hacks . | . . . . . Scanalyzer . | . . . . . Garrison Access Hacks . | . . . . . Unauthorized Hacks . | . . . . . Terminals . | . . . . . Fabricators . | . . . . . Repair Stations . | . . . . . Recycling Units . | . . . . . Scanalyzers . | . . . . . Garrison Access . | . . . . . Data Cores Recovered . | . . . . . Used . | . . . . . Hacking Detections . | . . . . . Full Trace Events . | . . . . . Feedback Events . | . . . . . Feedback Blocked . | . . . . . Robot Schematics Acquired . | . . . . . Robots Built . | . . . . . Authchips . | . . . . . Time . | . . . . . Total Robot Build Rating . | . . . . . Part Schematics Acquired . | . . . . . Parts Built . | . . . . . Authchips . | . . . . . Time . | . . . . . Total Part Build Rating . | . . . . . Parts Repaired . | . . . . . Time . | . . . . . Parts Recycled . | . . . . . Recycled Matter . | . . . . . Retrieved Matter . | . . . . . Retrieved Components . | . . . . . Parts Scanalyzed . | . . . . . Part Schematics Acquired . | . . . . . Parts Damaged . | . . . . . Bothacking | -11 -10 -10 -9 -9 ------------ Run | Yrd Mat Min Mat Min Used RIF Installer . | . . . . . Robots Hacked . | . . . . . Non-combat . | . . . . . Combat . | . . . . . Robot Hacks Applied . | . . . . . Relay Couplers Released . | . . . . . Fabnet Peak Effective % . | . . . . . Robots Rewired . | . . . . . Allies Hacked . | . . . . . Hacks Repelled . | . . . . . Allies | -11 -10 -10 -9 -9 -------- Run | Yrd Mat Min Mat Min Total Allies . | . . . . . Largest Group . | . . . . . Highest-Rated Group . | . . . . . Highest-Rated Ally . | . . . . . Total Orders . | . . . . . Ally Attacks . | . . . . . Total Damage . | . . . . . Kills . | . . . . . Allies Corrupted . | . . . . . Allies Melted . | . . . . . Intel | -11 -10 -10 -9 -9 ------- Run | Yrd Mat Min Mat Min Robot Analysis Total . | . . . . . Derelict Logs Recovered 2 | . . 1 . 1 Drone Launches . | . . . . . Drone Recoveries . | . . . . . Exploration | -11 -10 -10 -9 -9 ------------- Run | Yrd Mat Min Mat Min Turns Passed 3876 | 160 218 2281 368 849 Spaces Moved 915 | 58 130 464 75 188 Core 27 | 16 . . 3 8 Treads 406 | 42 130 12 58 164 Legs . | . . . . . Wheels . | . . . . . Hover 17 | . . . 9 8 Flight 465 | . . 452 5 8 Fastest Speed 50 | 50 160 160 240 292 Average Speed 388 | 129 160 478 393 404 Slowest Speed 1880 | 160 160 1720 1720 1880 Overloaded Moves . | . . . . . Propulsion Burnouts . | . . . . . Robots Hopped . | . . . . . Cave-ins Triggered . | . . . . . Exploration Rate (%) 30 | 6 22 76 8 39 Regions Visited 4 Branch Regions 2 Pre-discovered Areas . | . . . . . Known Exits Taken . | . . . . . Unknown Exits Taken 4 | 1 1 1 1 . Scrap Searched 1 | . . 1 . . Spaces Dug . | . . . . . Terrain Destroyed . | . . . . . Melee . | . . . . . Projectile . | . . . . . AOE . | . . . . . Terrain Rammed . | . . . . . Walls Destroyed . | . . . . . Machines Disabled . | . . . . . Actions | -11 -10 -10 -9 -9 --------- Run | Yrd Mat Min Mat Min Total 1137 | 142 138 498 124 235 Wait 78 | 75 3 . . . Move 911 | 57 129 463 74 188 Hop . | . . . . . Pick Up 35 | 5 4 5 13 8 Fast Attach 2 | 2 . . . . Attach 20 | 3 1 2 9 5 Detach . | . . . . . Swap 14 | . . 4 5 5 Drop 7 | . . . 4 3 Fire 55 | . 1 23 19 12 Melee 6 | . . . . 6 Ram 1 | . . 1 . . Kick . | . . . . . Crush 8 | . . . . 8 Escape Stasis . | . . . . . Rewire . | . . . . . Trap . | . . . . . Miscellaneous . | . . . . . Route ------- -11/Scrapyard -10/Materials -10/Mines (discovered 2 exits: *Mat x2) -9/Materials -9/Mines History --------- Turn | Location | Event 15 | -11/Scrapyard | Discovered new exit (range 15) 161 | -11/Scrapyard | Entered Materials 277 | -10/Materials | Discovered new exit (range 12) 306 | -10/Materials | Build established: Mutant 379 | -10/Materials | Entered Mines 448 | -10/Mines | Met a Derelict bent on vengeance 578 | -10/Mines | Learned 2 Materials zone layouts 764 | -10/Mines | Discovered new exit (range 12) 980 | -10/Mines | Discovered new exit (range 6) 2660 | -10/Mines | Entered Materials 2660 | -9/Materials | Evolved 2 slots: Power x1, Propulsion x1 2688 | -9/Materials | Lost 3 parts (1p1n1w) 2790 | -9/Materials | Lost 4 parts (2n2w) 2930 | -9/Materials | Discovered new exit (range 5) 3028 | -9/Materials | Entered Mines 3118 | -9/Mines | Learned Materials stockpile data 3177 | -9/Mines | Core integrity fell below 50% 3200 | -9/Mines | Lost 4 parts (1p2n1u) 3853 | -9/Mines | Assembled infested the area 3858 | -9/Mines | Assisted by a Guerilla fighting off Assembled 3876 | -9/Mines | Core integrity fell below 20% 3877 | -9/Mines | Destroyed by as-77678 with Assembled Blade Last Messages --------------- A derelict emerges from the shadows: "You need to get out of here! I've been tracking a group of Assembled to figure out where they're coming from, and they're closing on this area, come on!" as-45712 destroyed. Ion Engine destroyed. Lgt. Ion Engine destroyed. Slammed into as-20787. Lgt. Assault Rifle destroyed. Flight Unit destroyed. System corrupted by crushing effect (+4). System corrupted by crushing effect (+5). Particle Cannon destroyed. Slammed into as-20787. Imp. Treads destroyed. Slammed into as-20787. System corrupted: Matter fused (-9). Acquired 3 matter. Lgt. Treads destroyed. Map ----- +----------------------------------------------------+ | | | | | | | | | | | ?????????????????????????????????????????????????? | | ?????????????????????????????????????????????????? | | ?????????????????????????????????????????????????? | | ?????????????????????????????????????????????????? | | ?????????????????????????????????????????????????? | | ?????????????????????????????????????????????????? | | ?????????????????????????????????????????????????? | | ?????????????????????????????????????????????????? | | ?????????????????????????????????????????????????? | | ?????????????????????????????????????????????????? | | ?????????????????????????????????????????????????? | | ???????????????????????????????????#? ???????????? | | ?????????????????????????????????? # ???????????? | | ?????????????????????####??????## ??????????? | | ????????????????????## ##???? ??????????? | | ????????????????????# #??? ??????????? | | ??####??????????????# ##?# % ?????????? | | ?## ##????######### a ## ?????????? | | ?# #???## ## a aa ????????? | | ?# ##??# aaa a ????????? | | ??# ##?# aa@a ????????? | | ??# ### aaaa #####???????????????? | | ??# ##???????????????????? | | ??## ##a ##????????????????????? | | ???### ## ######?????????????????????? | | ?????## #### ##????????????????????????? | | ??????### ##### #????????????????????????? | | ????????## ## #????????????????????????? | | ###??????##### #### ##????????????????????????? | | ##?????????# #??######?????????????????????????? | | #?????????# #?????????????????????????????????? | | ##????????#%#?????????????????????????????????? | | ##???????# #?????????????????????????????????? | | # ##??????# #?????????????????????????????????? | | # ##?????# #?????????????????????????????????? | | ## #?????# #?????????????????????????????????? | | ?### #?????# #?????????????????????????????????? | | ######+#?????# #?????????????????????????????????? | | # ## #?????# #?????????????????????????????????? | | # ## #?????# #?????????????????????????????????? | | # ## ####### ######????????????????????????????? | | # ## #????????????????????????????? | | ############## #??#####?????????????????????? | | #????????????# #?## ##????????????????????? | | ##???????????# ### #????????????????????? | +----------------------------------------------------+ Best States ------------- Heat Dissipation 28 Energy Generation 15 Energy Capacity 400 Matter Stores 431 Matter Capacity 500 Sight Range 16 Terrain Scan Density 10 Armor Coverage 80 Evasion (%) 50 Recoil Reduction 3 Item Schematics ----------------- None Robot Schematics ------------------ None Fabricated ------------ Nothing Alien Tech Used ----------------- None Achievements -------------- Power Corrupts Challenges ------------ None Game ------ Seed TrackerGaussSpear Manual? 0 Play Time 00:18:18 Cumulative 0.6 hours Start 2024.09.26 @ 22:56:26 End 2024.10.01 @ 21:40:32 Sessions 3 Manual Loads 0 Difficulty Rogue Special Mode None Game No. 3 Rogue 2 Adventurer 1 Explorer 0 Win Type - Total 0 Types 0/0/0/0/0/0/0/0/0 Lore% 0 Gallery% 2 Achievement% 2 Wizard Run 0 Options --------- Layout 1 ASCII 0 Keyboard 0 Movement Mouse Keybinds 0 Fullscreen 1 Font 24/Smallcaps Map View 50x35 Zoom Use 0% Tactical HUD 0 Map Filters NONE Filters NONE Steam 1 RUN: 868a715d-d0a1-48c7-bf1e-5f827a5c926f